bitfinex/quotes_SOLUSD_20250901
["timestamp","ask_amount","ask_price","bid_price","bid_amount"]
[1756696630767,13.59559401,197.78,197.61,5.06038983]
[1756696630768,13.59559401,197.78,197.69,12.04]
[1756696631681,13.59559401,197.76,197.69,12.04]
[1756696631860,17.69732517,197.77,197.69,12.04]
[1756696632061,17.69732517,197.77,197.7,0.14216157]
[1756696632261,43.69732517,197.77,197.7,0.14216157]
[1756696632480,43.69732517,197.77,197.69,12.04]
[1756696632666,26.0,197.74,197.69,12.04]
[1756696633067,17.69732517,197.77,197.69,12.04]
[1756696633068,17.69732517,197.77,197.69,40.68]
[1756696633395,17.69732517,197.77,197.69,180.68]
[1756696633559,17.69732517,197.77,197.69,140.0]
[1756696633768,26.0,197.74,197.7,40.68]
[1756696634487,26.0,197.74,197.69,140.0]
[1756696634688,26.0,197.74,197.69,40.68]
[1756696634898,26.0,197.74,197.64,0.14216157]
[1756696635186,26.0,197.74,197.66,0.14216157]
[1756696635779,26.0,197.7,197.66,0.14216157]
[1756696636166,12.64180386,197.76,197.67,5.99003828]
[1756696636372,5.05689001,197.75,197.68,6.13219985]
[1756696636575,12.69997965,197.79,197.71,0.14216157]
[1756696636805,12.69997965,197.79,197.73,0.14216157]
[1756696636806,5.05612296,197.78,197.73,0.14216157]
[1756696637588,5.05612296,197.78,197.73,140.14216157]
[1756696637790,5.11586733,197.79,197.73,140.14216157]
[1756696638776,5.11586733,197.79,197.73,146.13219985]
[1756696638992,0.06,197.79,197.75,6.13219985]
[1756696639177,0.06,197.79,197.75,0.14216157]
[1756696639378,0.06,197.79,197.77,0.14216157]
[1756696639976,0.06,197.79,197.78,6.13219985]
[1756696640173,0.06,197.79,197.78,20.23340615]
[1756696640388,0.06,197.79,197.78,32.93215315]
[1756696641176,0.06,197.79,197.78,58.93215315]
[1756696642182,0.06,197.79,197.78,37.98827611]
[1756696642386,0.1,197.8,197.79,13.73775558]
[1756696642695,0.1,197.8,197.79,19.72779386]
[1756696643108,0.06,197.81,197.79,159.72779386]
[1756696643315,0.06,197.87,197.86,19.58563229]
[1756696643476,0.06,197.87,197.86,19.72779386]
[1756696643803,0.06,197.87,197.86,6.13219985]
[1756696643976,0.06,197.87,197.86,46.79219985]
[1756696644491,0.06,197.87,197.86,0.14216157]
[1756696644981,0.06,197.87,197.86,40.66]
[1756696645782,0.06,197.87,197.82,5.99003828]
[1756696645995,0.06,197.87,197.83,40.66]
[1756696646171,0.06,197.87,197.8,5.99003828]
[1756696646376,0.06,197.87,197.81,40.66]
[1756696646577,0.06,197.87,197.82,0.14216157]
[1756696647179,0.06,197.87,197.84,0.14216157]
[1756696647389,0.06,197.87,197.86,0.14216157]
[1756696647786,0.06,197.87,197.86,40.66]
[1756696648491,26.06,197.87,197.86,40.66]
[1756696650408,5.05407864,197.86,197.81,140.14216157]
[1756696650708,5.05407864,197.86,197.82,40.80216157]
[1756696650874,5.05407864,197.86,197.81,140.0]
[1756696651197,17.68927524,197.86,197.82,40.66]
[1756696651571,5.1138458,197.87,197.82,40.66]
[1756696651772,5.1138458,197.87,197.83,0.14216157]
[1756696652081,5.1138458,197.87,197.82,40.66]
[1756696652280,0.06,197.87,197.82,40.66]
[1756696653087,0.06,197.87,197.83,40.66]
[1756696653284,0.06,197.87,197.84,40.66]
[1756696653506,0.06,197.87,197.85,40.66]
[1756696655286,0.06,197.87,197.86,0.14216157]
[1756696655622,0.06,197.87,197.86,6.13219985]
[1756696656283,0.06,197.87,197.86,24.7818725]
[1756696658889,0.06,197.87,197.86,164.7818725]
[1756696660085,0.06,197.87,197.86,31.84501477]
[1756696660399,0.06,197.87,197.86,32.35042263]
[1756696660716,0.06,197.87,197.86,38.34046091]
[1756696660899,0.06,197.87,197.86,32.35042263]
[1756696661096,0.06,197.87,197.86,72.99042263]
[1756696663005,0.06,197.87,197.86,88.19042263]
[1756696663324,0.06,197.87,197.86,228.19042263]
[1756696663525,0.06,197.87,197.86,227.68501477]
[1756696664018,0.06,197.91,197.9,26.0]
[1756696664315,0.06,197.91,197.9,86.36779386]
[1756696665002,0.06,197.91,197.9,45.72779386]
[1756696665513,0.06,197.91,197.9,86.36779386]
[1756696665811,0.06,197.91,197.9,54.91955758]
[1756696666034,0.06,197.91,197.9,95.41739601]
[1756696666202,0.06,197.91,197.9,40.64]
[1756696666614,0.06,197.91,197.9,40.78216157]
[1756696666801,0.06,197.91,197.88,5.99003828]
[1756696667006,0.06,197.91,197.9,40.64]
[1756696667217,0.06,197.91,197.9,180.78216157]
[1756696667511,0.06,197.91,197.9,186.77219985]
[1756696667826,0.06,197.91,197.9,200.36779386]
[1756696668400,0.06,197.91,197.9,199.43081267]
[1756696668900,0.06,197.91,197.9,205.42085095]
[1756696669625,0.06,197.91,197.9,231.42085095]
[1756696670417,0.06,197.91,197.9,91.42085095]
[1756696670727,0.1,197.99,197.94,39.59559401]
[1756696670905,0.1,197.99,197.98,0.14216157]
[1756696671106,0.1,197.99,197.98,40.62]
[1756696671291,0.1,197.99,197.98,40.76216157]
[1756696671492,0.1,197.99,197.98,46.75219985]
[1756696672631,0.1,197.99,197.98,65.39880911]
[1756696673043,0.1,197.99,197.98,18.78877083]
[1756696673317,0.1,197.99,197.98,205.39880911]
[1756696673914,0.1,197.99,197.98,140.14216157]
[1756696674099,0.1,197.99,197.98,180.76216157]
[1756696674916,0.1,197.99,197.98,185.81317682]
[1756696675823,0.1,197.99,197.98,180.76216157]
[1756696677796,0.1,197.99,197.98,91.39880911]
[1756696678000,0.1,197.99,197.85,15.2]
[1756696678307,0.1,197.99,197.9,3.72317741]
[1756696678625,5.15080296,197.99,197.93,0.14216157]
[1756696678928,5.15080296,197.99,197.95,0.14216157]
[1756696678929,0.1,197.99,197.95,0.14216157]
[1756696679100,0.1,197.99,197.96,41.12]
[1756696679628,5.15076753,197.99,197.96,41.12]
[1756696679996,5.15076753,197.99,197.89,44.93574741]
[1756696680227,26.0,197.96,197.89,0.03]
[1756696680430,26.0,197.96,197.9,41.1]
[1756696680598,0.1,197.99,197.93,13.59559401]
[1756696680793,0.1,197.99,197.95,13.73775558]
[1756696681024,0.1,197.99,197.97,0.14216157]
[1756696681216,0.1,197.99,197.98,41.38216157]
[1756696682211,5.15076013,197.99,197.98,41.24]
[1756696683098,5.15076013,197.99,197.93,140.0]
[1756696683344,5.15076013,197.99,197.94,41.22]
[1756696684036,17.77766047,197.99,197.94,41.22]
[1756696684210,5.15076013,197.99,197.94,41.22]
[1756696684942,26.0,197.96,197.89,0.03]
[1756696685440,26.0,197.96,197.9,41.22]
[1756696685735,26.0,197.92,197.9,41.22]
[1756696686312,17.68123263,197.95,197.9,41.22]
[1756696686313,5.05178075,197.95,197.9,41.22]
[1756696686814,0.1,197.99,197.91,0.14216157]
[1756696687223,0.1,197.99,197.93,19.69785633]
[1756696687418,0.1,197.99,197.94,41.24]
[1756696687631,0.1,197.99,197.94,47.20010075]
[1756696687839,0.1,197.99,197.96,0.14216157]
[1756696688006,0.1,197.99,197.97,41.24]
[1756696688639,5.15082817,197.99,197.97,41.24]
[1756696689179,5.15082817,197.99,197.96,140.0]
[1756696689305,17.77772851,197.99,197.95,41.22]
[1756696689505,17.77772851,197.99,197.89,2.054343]
[1756696689506,26.0,197.96,197.89,2.054343]
[1756696689805,5.05178075,197.95,197.9,41.22]
[1756696690224,5.05178075,197.95,197.91,41.22]
[1756696690436,17.68123263,197.95,197.91,41.22]
[1756696690831,17.68123263,197.95,197.89,0.03]
[1756696691043,17.68123263,197.95,197.9,41.2]
[1756696692233,17.68123263,197.95,197.9,181.2]
[1756696693859,17.68123263,197.95,197.89,0.03]
[1756696693860,26.0,197.92,197.89,0.03]
[1756696694352,26.0,197.91,197.89,0.03]
[1756696695234,17.68123263,197.95,197.89,0.03]
[1756696695437,26.0,197.92,197.89,0.03]
[1756696695935,5.05280177,197.91,197.89,0.03]
[1756696696753,5.05203597,197.94,197.89,0.03]
[1756696696962,5.05203597,197.94,197.89,140.03]
[1756696697322,5.05203597,197.94,197.9,41.14]
[1756696698158,31.05178075,197.95,197.9,41.14]
[1756696698750,43.68123263,197.95,197.89,0.03]
[1756696698958,2.63571676,197.98,197.89,0.03]
[1756696699271,0.1,197.99,197.98,0.14216157]
[1756696699430,0.1,197.99,197.98,55.07775558]
[1756696699935,0.1,197.99,197.98,58.84101423]
[1756696700153,0.1,197.99,197.98,63.89202948]
[1756696700956,0.1,197.99,197.98,69.85213023]
[1756696701727,0.1,197.99,197.98,209.8525057]
[1756696701940,0.1,197.99,197.98,203.89240495]
[1756696702139,0.1,197.99,197.98,209.8525057]
[1756696703934,0.06,198.01,198.0,39.59559401]
[1756696704150,0.06,198.01,198.0,54.5119955]
[1756696705039,0.06,198.01,198.0,56.5351095]
[1756696705541,0.06,198.01,198.0,95.9719955]
[1756696708159,1e-08,198.01,198.0,225.1719955]
[1756696708463,1e-08,198.01,198.0,219.21189475]
[1756696708673,1e-08,198.01,198.0,183.7119955]
[1756696708848,1e-08,198.01,198.0,225.1719955]
[1756696709240,1e-08,198.01,198.0,219.21189475]
[1756696709442,1e-08,198.01,198.0,225.1719955]
[1756696709974,1e-08,198.01,198.0,164.57480375]
[1756696710274,1e-08,198.01,198.0,206.01480375]
[1756696710453,1e-08,198.01,198.0,211.9749045]
[1756696710770,1e-08,198.01,198.0,237.9549045]
[1756696710945,1e-08,198.01,198.0,234.19127038]
[1756696711862,1e-08,198.01,198.0,232.16836138]
[1756696712464,1e-08,198.01,198.0,190.74836138]
[1756696712765,1e-08,198.01,198.0,232.14836138]
[1756696713146,1e-08,198.01,198.0,140.0]
[1756696713362,1e-08,198.01,198.0,181.38]
[1756696713850,1e-08,198.01,198.0,181.52216157]
[1756696714050,1e-08,198.01,198.0,140.0]
[1756696714249,1e-08,198.01,198.0,181.4]
[1756696714975,1e-08,198.01,198.0,181.54216157]
[1756696717674,1e-08,198.01,198.0,192.55276737]
[1756696717876,1e-08,198.01,198.0,221.34836138]
[1756696718180,1e-08,198.01,198.0,206.14836138]
[1756696718964,1e-08,198.01,198.0,221.34836138]
[1756696722875,1e-08,198.01,198.0,206.00836138]
[1756696723288,1e-08,198.01,198.0,284.56619981]
[1756696723462,1e-08,198.01,198.0,211.96846213]
[1756696723883,1e-08,198.01,198.0,221.20836138]
[1756696724086,2.022909,198.21,198.11,13.59559401]
[1756696724385,2.022909,198.21,198.1,26.0]
[1756696724386,7.06814072,198.21,198.13,18.64259826]
[1756696724574,5.04523172,198.21,198.15,0.14216157]
[1756696724782,5.04523172,198.21,198.16,41.52]
[1756696725485,5.04439063,198.24,198.16,41.52]
[1756696725686,26.0,198.21,198.16,41.52]
[1756696726593,5.04540867,198.2,198.16,41.52]
[1756696726794,5.04540867,198.2,198.17,41.48]
[1756696727093,5.04540867,198.2,198.18,41.46]
[1756696727298,5.04540867,198.2,198.15,0.14216157]
[1756696727473,5.04540867,198.2,198.16,41.44]
[1756696727664,5.04540867,198.2,198.17,41.44]
[1756696728094,5.04540867,198.2,198.16,140.0]
[1756696728393,12.60920249,198.27,198.18,0.14216157]
[1756696728592,12.60920249,198.27,198.19,41.44]
[1756696728792,26.0,198.24,198.19,41.44]
[1756696730383,26.0,198.24,198.17,0.14216157]
[1756696730567,26.0,198.24,198.18,41.38]
[1756696730772,5.0446451,198.23,198.18,41.38]
[1756696731583,17.65625787,198.23,198.19,41.36]
[1756696733283,17.65625787,198.23,198.16,140.0]
[1756696733596,17.65625787,198.23,198.17,41.32]
[1756696734297,5.0446451,198.23,198.17,41.32]
[1756696734689,17.65625787,198.23,198.17,41.32]
[1756696735498,17.65625787,198.23,198.18,41.28]
[1756696736100,17.71625787,198.23,198.18,41.28]
[1756696737698,5.1046451,198.23,198.18,41.28]
[1756696738906,26.0,198.19,198.06,5.04897505]
[1756696739107,26.0,198.19,198.08,19.55569476]
[1756696739283,26.0,198.19,198.09,3.87821933]
[1756696739600,26.0,198.19,198.1,3.73605776]
[1756696739805,26.0,198.19,198.11,45.09605776]
[1756696740005,26.0,198.19,198.12,3.73605776]
[1756696740188,26.0,198.19,198.13,3.73605776]
[1756696740386,26.0,198.19,198.14,3.73605776]
[1756696740595,5.04591785,198.18,198.15,45.07605776]
[1756696740794,5.04591785,198.18,198.16,3.73605776]
[1756696741495,5.04591785,198.18,198.17,3.73605776]
[1756696741710,5.04591785,198.18,198.16,3.73605776]
[1756696741888,17.66071248,198.18,198.14,41.32]
[1756696742084,17.66071248,198.18,198.15,3.74637039]
[1756696742284,5.04591785,198.18,198.16,3.74637039]
[1756696742486,26.0,198.2,198.17,3.75038431]
[1756696742487,5.04566325,198.19,198.17,3.75038431]
[1756696742688,31.04566325,198.19,198.18,3.75038352]
[1756696743505,26.0,198.16,198.06,140.0]
[1756696743814,26.0,198.16,198.08,0.14216157]
[1756696743994,26.0,198.16,198.07,41.3]
[1756696744196,26.0,198.16,198.06,140.0]
[1756696744411,26.0,198.16,198.07,41.3]
[1756696744712,43.66338631,198.15,198.07,41.3]
[1756696745892,26.0,198.11,198.03,0.03]
[1756696746086,26.0,198.11,198.04,41.26]
[1756696746510,5.04770077,198.11,198.04,41.26]
[1756696746737,26.0,198.1,198.04,41.26]
[1756696747294,5.04770077,198.11,198.04,41.26]
[1756696747508,5.04770077,198.11,198.05,0.17216157]
[1756696748819,5.04744599,198.12,198.05,140.17216157]
[1756696750213,17.66606097,198.12,198.05,140.03]
[1756696750527,17.66606097,198.12,198.06,41.22]
[1756696750901,26.0,198.09,198.06,41.22]
[1756696751396,26.0,198.09,198.05,41.27]
[1756696752800,5.04846526,198.08,198.05,41.27]
[1756696753308,5.04846526,198.08,198.05,0.03]
[1756696753309,26.0,198.06,198.05,0.03]
[1756696755412,26.0,198.09,198.05,0.03]
[1756696755713,26.0,198.08,198.05,0.03]
[1756696756711,17.6669527,198.11,198.05,0.03]
[1756696757222,43.6669527,198.11,198.05,0.03]
[1756696757425,5.04872014,198.07,198.05,0.03]
[1756696760319,17.6691523,198.09,198.05,0.03]
[1756696763807,26.0,198.06,198.05,0.03]
[1756696765613,26.0,198.02,198.01,0.03]
[1756696765822,26.0,198.01,197.94,36.4]
[1756696766127,26.0,198.01,197.96,38.46]
[1756696767116,13.59559401,198.0,197.9,0.03]
[1756696767322,26.0,197.97,197.91,41.04]
[1756696767932,26.0,197.93,197.9,0.03]
[1756696768613,26.0,197.93,197.9,140.03]
[1756696769635,26.0,197.93,197.9,0.03]
[1756696769824,18.64814049,197.92,197.9,0.03]
[1756696770335,5.05254648,197.92,197.9,0.03]
[1756696771637,5.05229121,197.93,197.9,0.03]
[1756696773452,26.0,197.91,197.9,0.03]
[1756696774051,5.05280177,197.91,197.9,0.03]
[1756696778949,26.0,197.88,197.87,0.03]
[1756696779146,26.0,197.88,197.86,0.03]
[1756696779147,13.59559401,197.87,197.86,0.03]
[1756696779361,13.59559401,197.87,197.8,0.03]
[1756696779362,39.59559401,197.87,197.8,0.03]
[1756696779666,26.0,197.83,197.8,0.03]
[1756696782064,31.05484506,197.83,197.8,0.03]
[1756696783762,44.65043907,197.83,197.8,0.03]
[1756696784150,31.05484506,197.83,197.8,0.03]
[1756696785570,5.05454694,197.85,197.8,0.03]
[1756696788661,26.0,197.84,197.8,0.03]
[1756696791278,31.05461,197.84,197.8,0.03]
[1756696791480,26.0,197.84,197.8,0.03]
[1756696791861,31.05459565,197.84,197.8,0.03]
[1756696792485,26.0,197.84,197.8,0.03]
[1756696793179,31.05460425,197.84,197.8,0.03]
[1756696793570,26.0,197.84,197.8,0.03]
[1756696793771,31.0546509,197.84,197.8,0.03]
[1756696794272,31.0546509,197.84,197.82,140.03]
[1756696795176,26.0,197.84,197.82,140.03]
[1756696795573,5.114354,197.85,197.82,140.03]
[1756696795968,26.0,197.84,197.82,140.03]
[1756696796893,0.06,197.85,197.82,140.03]
[1756696797481,0.06,197.85,197.82,145.08505978]
[1756696798090,0.06,197.85,197.82,140.03]
[1756696800392,0.06,197.85,197.83,40.84]
[1756696801203,0.06,197.85,197.82,140.03]
[1756696801404,0.06,197.85,197.83,40.98216157]
[1756696802091,0.06,197.85,197.84,40.82]
[1756696802882,0.06,197.85,197.84,40.96216157]
[1756696804198,0.06,197.85,197.84,46.01675113]
[1756696804996,0.06,197.85,197.84,40.96216157]
[1756696806384,0.06,197.85,197.84,0.14216157]
[1756696806574,0.06,197.85,197.84,40.96216157]
[1756696806772,0.06,197.85,197.82,0.03]
[1756696806985,0.06,197.85,197.83,40.82]
[1756696807383,0.06,197.85,197.83,180.82]
[1756696807997,0.06,197.85,197.84,40.82]
[1756696810214,0.06,197.85,197.84,40.96216157]
[1756696810393,0.01382375,197.85,197.84,40.96216157]
[1756696812113,0.06,197.87,197.85,0.14216157]
[1756696812415,0.06,197.87,197.84,49.73967844]
[1756696812416,0.06,197.87,197.86,40.96216157]
[1756696813818,0.06,197.87,197.82,0.03]
[1756696814126,0.06,197.87,197.86,140.0]
[1756696814551,0.06,197.87,197.86,180.82]
[1756696816241,0.06,197.87,197.83,3.86508888]
[1756696816544,0.06,197.87,197.82,0.03]
[1756696816545,26.06,197.87,197.84,40.82]
[1756696817429,0.06,197.87,197.84,40.82]
[1756696819221,0.06,197.87,197.84,180.82]
[1756696819561,0.06,197.87,197.84,184.54292731]
[1756696819765,0.06,197.87,197.85,3.86508888]
[1756696819924,0.06,197.87,197.86,40.82]
[1756696821050,0.06,197.87,197.84,140.0]
[1756696821261,0.06,197.87,197.85,40.82]
[1756696821432,0.06,197.87,197.86,40.82]
[1756696823227,0.06,197.87,197.86,40.96216157]
[1756696823446,0.06,197.87,197.86,44.68508888]
[1756696823652,0.06,197.87,197.86,49.73916752]
[1756696824153,0.01610765,197.87,197.86,189.73916752]
[1756696824334,0.01610765,197.87,197.86,140.14216157]
[1756696824539,0.01610765,197.87,197.86,184.66508888]
[1756696825553,0.01610765,197.87,197.86,140.0]
[1756696825734,0.01610765,197.87,197.84,0.03]
[1756696825930,0.01610765,197.87,197.85,40.8]
[1756696826853,0.01610765,197.87,197.84,0.03]
[1756696827966,13.61170166,197.87,197.84,0.03]
[1756696828138,13.59559401,197.85,197.82,0.03]
[1756696828463,39.59559401,197.83,197.82,1e-08]
[1756696828644,26.0,197.83,197.82,1e-08]
[1756696830045,44.65043907,197.83,197.82,1e-08]
[1756696832938,31.05484506,197.83,197.82,1e-08]
[1756696833350,44.65043907,197.83,197.82,1e-08]
[1756696834053,13.59559401,197.82,197.8,1e-08]
[1756696834356,5.05484506,197.83,197.8,1e-08]
[1756696834357,26.0,197.81,197.8,1e-08]
[1756696834653,39.59559401,197.8,197.73,0.03]
[1756696835557,41.62260401,197.8,197.73,0.03]
[1756696835768,28.02701,197.8,197.73,0.03]
[1756696835949,5.05586733,197.79,197.73,140.03]
[1756696837257,5.05586733,197.79,197.74,40.8]
[1756696839386,17.69553566,197.79,197.73,0.03]
[1756696840271,5.05586733,197.79,197.73,0.03]
[1756696840968,17.69553566,197.79,197.73,0.03]
[1756696842180,17.69553566,197.79,197.73,140.03]
[1756696842376,5.05586733,197.79,197.73,140.03]
[1756696843097,17.69553566,197.79,197.73,140.03]
[1756696844194,5.05586733,197.79,197.73,140.03]
[1756696845072,17.69553566,197.79,197.73,0.03]
[1756696845267,5.05586733,197.79,197.73,0.03]
[1756696845472,0.06,197.83,197.73,3.75292731]
[1756696845770,0.06,197.83,197.74,0.14216157]
[1756696845991,0.06,197.83,197.81,3.72292731]
[1756696846192,0.06,197.83,197.81,44.52292731]
[1756696846572,0.06,197.83,197.81,40.8]
[1756696847394,30.67452294,197.85,197.81,40.8]
[1756696847882,30.67452294,197.85,197.79,3.72292731]
[1756696848078,30.67452294,197.85,197.81,40.8]
[1756696848278,4.67452294,197.85,197.81,40.8]
[1756696848488,26.0,197.84,197.8,40.8]
[1756696849194,26.0,197.84,197.79,140.0]
[1756696849377,26.0,197.84,197.8,40.8]
[1756696850495,5.05484506,197.83,197.81,40.8]
[1756696850689,17.69195773,197.83,197.8,40.8]
[1756696850873,5.05484506,197.83,197.77,40.8]
[1756696851189,5.05484506,197.83,197.75,3.72292731]
[1756696851190,5.05484506,197.83,197.78,40.8]
[1756696852704,17.69195773,197.83,197.78,40.8]
[1756696855506,5.05484506,197.83,197.78,40.8]
[1756696856689,5.0546557,197.84,197.78,44.52292731]
[1756696857008,26.0,197.86,197.79,0.14216157]
[1756696857183,31.0541148,197.86,197.79,0.14216157]
[1756696857386,31.0541148,197.86,197.8,40.8]
[1756696857800,43.6893114,197.86,197.8,40.8]
[1756696858004,43.6893114,197.86,197.81,40.8]
[1756696858180,43.6893114,197.86,197.76,3.72292731]
[1756696858391,43.6893114,197.86,197.79,40.8]
[1756696860488,43.6893114,197.86,197.79,184.55292731]
[1756696860489,5.0541148,197.86,197.79,184.55292731]
[1756696860782,5.1141148,197.86,197.8,0.14216157]
[1756696861111,0.06,197.86,197.83,3.72292731]
[1756696861296,0.06,197.86,197.84,40.78]
[1756696861493,0.06,197.86,197.85,3.86508888]
[1756696861695,0.06,197.86,197.85,0.14216157]
[1756696861894,0.06,197.86,197.85,3.86508888]
[1756696862297,0.06,197.86,197.85,17.46068289]
[1756696862498,0.06,197.86,197.85,13.73775558]
[1756696862807,0.06,197.86,197.85,17.46068289]
[1756696863229,0.06,197.86,197.85,40.92216157]
[1756696863413,0.06,197.86,197.85,44.64508888]
[1756696863909,0.06,197.86,197.85,63.29501698]
[1756696864421,0.01610765,197.87,197.85,63.29501698]
[1756696864422,0.01610765,197.87,197.86,39.73775558]
[1756696864595,0.01610765,197.87,197.86,43.96609075]
[1756696864795,0.06,197.89,197.88,43.46068289]
[1756696865011,0.06,197.89,197.88,48.5142507]
[1756696865206,0.06,197.89,197.88,89.2942507]
[1756696865402,0.06,197.89,197.88,48.5142507]
[1756696865920,0.06,197.89,197.88,89.2942507]
[1756696866701,0.06,197.89,197.88,48.5142507]
[1756696866905,0.06,197.89,197.88,89.2942507]
[1756696867119,0.06,197.89,197.88,29.86508888]
[1756696867321,0.06,197.89,197.88,44.62508888]
[1756696867491,0.06,197.89,197.88,3.72292731]
[1756696867696,0.06,197.89,197.88,44.48292731]
[1756696867920,0.06,197.89,197.88,44.62508888]
[1756696868420,0.06,197.89,197.83,26.0]
[1756696868609,0.06,197.89,197.85,3.72292731]
[1756696868809,0.06,197.89,197.86,0.14216157]
[1756696869018,0.06,197.89,197.87,40.76]
[1756696869616,0.06,197.89,197.87,44.48292731]
[1756696869820,0.06,197.89,197.87,140.0]
[1756696870025,0.06,197.89,197.88,40.76]
[1756696871599,0.06,197.89,197.87,140.0]
[1756696872103,0.06,197.89,197.82,3.72292731]
[1756696872298,0.06,197.89,197.83,40.76]
[1756696872499,0.06,197.89,197.79,0.17216157]
[1756696872694,0.06,197.89,197.8,40.76]
[1756696872898,0.06,197.89,197.81,40.76]
[1756696873597,17.74659355,197.89,197.81,40.76]
[1756696873836,5.11331244,197.89,197.81,40.76]
[1756696874999,17.74659355,197.89,197.81,40.76]
[1756696875209,17.74659355,197.89,197.81,180.76]
[1756696875925,17.74659355,197.89,197.81,140.0]
[1756696876137,26.0,197.85,197.82,40.76]
[1756696877132,26.0,197.85,197.79,0.03]
[1756696877316,26.0,197.81,197.79,0.03]
[1756696877833,5.05561172,197.8,197.79,0.03]
[1756696879421,26.0,197.81,197.79,0.03]
[1756696879624,26.0,197.83,197.79,0.03]
[1756696879830,31.05484506,197.83,197.79,140.03]
[1756696880026,26.0,197.83,197.79,140.03]
[1756696880329,31.05500851,197.83,197.79,140.03]
[1756696881623,31.05500851,197.83,197.8,40.76]
[1756696881831,43.69212118,197.83,197.8,40.76]
[1756696882131,31.05500851,197.83,197.8,40.76]
[1756696883439,31.05500851,197.83,197.79,40.79]
[1756696883824,43.68946007,197.86,197.79,44.51292731]
[1756696884120,31.05407864,197.86,197.79,44.51292731]
[1756696884327,31.05407864,197.86,197.8,3.72292731]
[1756696884719,31.05407864,197.86,197.8,140.0]
[1756696886221,43.68927524,197.86,197.81,40.76]
[1756696886419,43.68927524,197.86,197.82,40.76]
[1756696886619,26.0,197.83,197.82,40.76]
[1756696887333,17.68927524,197.86,197.82,40.76]
[1756696887544,26.0,197.84,197.82,40.76]
[1756696888544,5.05484506,197.83,197.82,40.76]
[1756696890330,26.0,197.84,197.82,40.76]
[1756696890842,31.05467748,197.84,197.79,140.03]
[1756696891044,31.05467748,197.84,197.81,40.74]
[1756696892049,43.69115139,197.84,197.79,140.03]
[1756696892251,43.69115139,197.84,197.8,40.74]
[1756696892824,43.69115139,197.84,197.79,0.03]
[1756696893045,43.69115139,197.84,197.8,40.74]
[1756696893638,43.69115139,197.84,197.79,0.03]
[1756696900869,31.05467748,197.84,197.79,0.03]
[1756696901154,31.05467748,197.84,197.79,3.75292731]
[1756696902082,31.05467748,197.84,197.79,0.03]
[1756696903739,43.69115139,197.84,197.79,0.03]
[1756696903935,43.69115139,197.84,197.79,40.77]
[1756696905178,43.69115139,197.84,197.79,0.03]
[1756696906051,58.89064439,197.84,197.79,0.03]
[1756696906435,43.69115139,197.84,197.79,0.03]
[1756696907879,31.05467748,197.84,197.79,0.03]
[1756696913669,26.0,197.84,197.79,143.75292731]
[1756696913874,31.05461515,197.84,197.79,140.03]
[1756696914174,31.05461515,197.84,197.8,40.72]
[1756696916279,43.69108906,197.84,197.79,40.75]
[1756696917063,31.05461515,197.84,197.79,40.75]
[1756696917379,5.05461515,197.84,197.79,40.75]
[1756696918074,17.68927524,197.86,197.79,40.75]
[1756696919272,17.68927524,197.86,197.79,180.75]
[1756696920150,17.68927524,197.86,197.79,140.03]
[1756696920352,26.0,197.83,197.8,40.7]
[1756696920552,26.0,197.83,197.79,0.03]